[Event "Mitropa Cup Open 2024"]
[Site "Apolda"]
[Date "2024.02.15"]
[Round "1.16"]
[White "Dotzer, Lukas"]
[Black "Decuigniere, Tom"]
[Result "1/2-1/2"]
[ECO "B80"]
[WhiteElo "2335"]
[BlackElo "2401"]
[Annotator "TA"]
[PlyCount "60"]
[EventDate "2024.02.15"]
[EventType "team-tourn"]
[EventCountry "GER"]
[SourceTitle "playchess.com"]
[Source "ChessBase"]
[SourceQuality "1"]
[WhiteTeam "Austria"]
[BlackTeam "France"]
[WhiteTeamCountry "AUT"]
[BlackTeamCountry "FRA"]
[TimeControl "40/5400+30:1800+30"]

{[%evp 16,60,20,12,32,24,6,2,32,14,18,6,0,0,0,0,0,0,0,0,0,0,0,0,0,0,0,0,0,0,0,0,0,0,0,-20,0,0,0,0,0,0,0,0,0,0,0]} 1. e4 {[%emt 0:00:02]} c5 {[%emt 0:00:04]} 2. Nf3 {[%emt 0:00:06]} d6 {[%emt 0:00:06]} 3. d4 {[%emt 0:00:06]} cxd4 {[%emt 0:00:05]} 4. Nxd4 {[%emt 0:00:07]} Nf6 {[%emt 0:00:04]} 5. Nc3 {[%emt 0:00:19]} a6 {[%emt 0:00:06]} 6. f3 {[%emt 0:00:11]} e6 {[%emt 0:00:46]} 7. Be3 {[%emt 0:00:11]} b5 {[%emt 0:00:59][%cal Bb7b5,Bb5b4][%mdl 32]} 8. Qd2 {[%emt 0:00:45]} Nbd7 {[%emt 0:01:35]} 9. g4 {[%emt 0:01:19]} b4 {[%emt 0:03:12]} 10. Na4 {[%emt 0:00:17][%cal Og4g5]} h6 {[%emt 0:01:28]} 11. h4 {[%emt 0:00:46][%cal Oe1c1,Bh2h4,Bh4g5][%mdl 32]} (11. Qxb4 d5 12. Qd2 dxe4 $15) 11... d5 {[%emt 0:01:21][%cal Bd6d5,Bd5e4][%mdl 32]} (11... Ne5 $5) 12. Rg1 $1 {[%emt 0:05:40]} dxe4 {[%emt 0:03:15] The position is equal.} 13. g5 {[%emt 0:00:54]} hxg5 {[%emt 0:01:24]} (13... Nd5 $5) 14. hxg5 {[%emt 0:00:13] [#] 0-0-0 would now be deadly.} Nd5 {[%emt 0:00:51]} 15. O-O-O {[%emt 0:10:04] Black must now prevent g6.} g6 $1 {[%emt 0:03:31]} 16. Bc4 $1 {[%emt 0:03:52]} (16. fxe4 Nxe3 17. Qxe3 Qa5 $17) 16... Bb7 $1 {[%emt 0:03:15]} 17. fxe4 {[%emt 0:05:01]} Nxe3 {[%emt 0:00:46]} 18. Qxe3 {[%emt 0:00:24][%cal Od4e6] [#] Hoping for Nxe6!} Qa5 {[%emt 0:03:55]} 19. Nxe6 {[%emt 0:09:42]} fxe6 {[%emt 0:05:55]} 20. Bxe6 {[%emt 0:00:58]} Ne5 {[%emt 0:01:17]} 21. Nb6 {[%emt 0:06:22]} Bc5 {[%emt 0:01:43]} 22. Qf4 {[%emt 0:02:43] The board is on fire.} Rf8 {[%emt 0:03:03] Against Qf6} (22... Bxb6 $2 23. Qf6 Rh7 24. Rh1 $18) 23. Bf7+ $1 {[%emt 0:01:23]} Nxf7 {[%emt 0:01:12]} 24. Qg4 $1 {[%emt 0:01:22][%csl Gb6,Gd1][%cal Rg4d7]} Qb5 {[%emt 0:01:05]} 25. Qe6+ {[%emt 0:01:33]} Be7 {[%emt 0:00:05]} 26. Nd7 {[%emt 0:01:37][%csl Ge6,Gg5][%cal Rd7f6]} ({Reject} 26. Nxa8 Bxa8 27. Qc8+ Nd8 28. Qxa8 Rf2 $15) 26... Rh8 {[%emt 0:01:34] And now ...Bc8 would win.} (26... Nxg5 $2 {loses.} 27. Qxg6+ Kd8 28. Nxf8+ Kc8 29. Rd7 Qxd7 30. Nxd7 Kxd7 31. Rxg5 Bxg5+ 32. Qxg5 $18) 27. Nf6+ {[%emt 0:02:05]} Kf8 {[%emt 0:00:10]} 28. Nd7+ {[%emt 0:00:27]} Ke8 {[%emt 0:00:04] ...Qc6 is the strong threat.} 29. Nf6+ {[%emt 0:00:15]} Kf8 {[%emt 0:00:03]} 30. Nd7+ {[%emt 0:00:10]} Ke8 {[%emt 0:00:06] A rather calm draw.   Weighted Error Value: White=0.01 (flawless) /Black=0.03 (flawless) .  Inaccurate:     	---       	Black=1      OK:         	White=8     	Black=8      Best:        	White=4     	Black=5      Strong:       	White=4     	Black=2} 1/2-1/2

[Event "Mitropa Cup Open 2024"]
[Site "Apolda"]
[Date "2024.02.15"]
[Round "1.17"]
[White "Subelj, Jan"]
[Black "Vykouk, Jan"]
[Result "0-1"]
[ECO "A53"]
[WhiteElo "2512"]
[BlackElo "2493"]
[Annotator "RC"]
[PlyCount "134"]
[EventDate "2024.02.15"]
[EventType "team-tourn"]
[EventCountry "GER"]
[SourceTitle "playchess.com"]
[Source "ChessBase"]
[SourceQuality "1"]
[WhiteTeam "Slovenia"]
[BlackTeam "Czech Republic"]
[WhiteTeamCountry "SLO"]
[BlackTeamCountry "CZE"]
[TimeControl "40/5400+30:1800+30"]

1. Nf3 {[%emt 0:00:20]} Nf6 {[%emt 0:00:53]} 2. c4 {[%emt 0:00:23]} d6 {[%emt 0:02:32]} 3. d4 {[%emt 0:00:50]} Bf5 {[%emt 0:05:49]} 4. Nc3 {[%emt 0:07:01]} h6 {[%emt 0:00:45]} 5. g3 {[%emt 0:04:13]} c6 {[%emt 0:01:25]} 6. Bg2 {[%emt 0:03:30]} Nbd7 {[%emt 0:00:53]} 7. O-O {[%emt 0:03:38]} e5 {[%emt 0:07:32]} 8. Nh4 {[%emt 0:05:02]} Bh7 {[%emt 0:01:11]} 9. e4 {[%emt 0:00:31]} Be7 {[%emt 0:00:57]} 10. Be3 {[%emt 0:02:34]} O-O {[%emt 0:01:43]} 11. Nf5 {[%emt 0:06:30]} Bxf5 {[%emt 0:02:10]} 12. exf5 {[%emt 0:00:10]} exd4 {[%emt 0:00:35]} 13. Bxd4 {[%emt 0:01:25]} Re8 {[%emt 0:09:22]} 14. Qc2 {[%emt 0:08:26]} Qc7 {[%emt 0:06:27]} 15. Rad1 {[%emt 0:01:28]} a5 {[%emt 0:03:29]} 16. h3 {[%emt 0:01:27]} Nb6 {[%emt 0:00:58]} 17. b3 {[%emt 0:00:46]} Nfd7 {[%emt 0:00:07]} 18. Ne4 {[%emt 0:01:16]} Bf8 {[%emt 0:07:51]} 19. f6 {[%emt 0:10:43]} g6 {[%emt 0:00:07]} 20. h4 {[%emt 0:00:58]} Rad8 {[%emt 0:01:46]} 21. h5 {[%emt 0:03:03]} gxh5 {[%emt 0:02:46]} 22. Nc3 {[%emt 0:01:47]} Qb8 {[%emt 0:12:39]} 23. Qf5 {[%emt 0:03:50]} c5 {[%emt 0:00:08]} 24. Be3 {[%emt 0:02:09]} Re5 {[%emt 0:00:36]} 25. Qf3 {[%emt 0:00:49]} Rde8 {[%emt 0:01:03]} 26. Bf4 {[%emt 0:02:22]} Rf5 {[%emt 0:01:42]} 27. Qd3 {[%emt 0:00:46]} Rxf6 {[%emt 0:03:14]} 28. Ne4 {[%emt 0:00:16]} Rg6 {[%emt 0:00:20]} 29. Nxd6 {[%emt 0:00:30]} Bxd6 {[%emt 0:01:40]} 30. Bxd6 {[%emt 0:00:06]} Qc8 {[%emt 0:00:08]} 31. Rfe1 {[%emt 0:05:02]} Rxe1+ {[%emt 0:02:26]} 32. Rxe1 {[%emt 0:00:30]} Nf6 {[%emt 0:00:09]} 33. Re7 {[%emt 0:00:49]} Qd8 {[%emt 0:03:43]} 34. Bf1 {[%emt 0:08:43]} Nc8 {[%emt 0:05:18]} 35. Bxc5 {[%emt 0:02:45]} Qxd3 {[%emt 0:00:04]} 36. Bxd3 {[%emt 0:00:07]} Nxe7 {[%emt 0:00:03]} 37. Bxe7 {[%emt 0:00:14]} Ne4 {[%emt 0:00:04]} 38. Bxe4 {[%emt 0:01:41]} Re6 {[%emt 0:00:43]} 39. Bxb7 {[%emt 0:00:21]} Rxe7 {[%emt 0:00:05]} 40. Bd5 {[%emt 0:00:36]} Re1+ {[%emt 0:02:18]} 41. Kg2 {[%emt 0:30:13]} Kf8 {[%emt 0:30:29]} 42. a3 {[%emt 0:06:13]} Ra1 {[%emt 0:01:08]} 43. b4 {[%emt 0:01:31]} Rxa3 {[%emt 0:13:25]} 44. bxa5 {[%emt 0:01:54]} Rxa5 {[%emt 0:00:10]} 45. Kh3 {[%emt 0:01:07]} Ra2 {[%emt 0:00:31]} 46. f4 {[%emt 0:01:24]} Rc2 {[%emt 0:00:43]} 47. Bf3 {[%emt 0:01:21]} Rxc4 {[%emt 0:00:23]} 48. Bxh5 {[%emt 0:00:08]} Ke7 {[%emt 0:00:27]} 49. Bf3 {[%emt 0:01:44]} Rc3 {[%emt 0:00:26]} 50. Bd5 {[%emt 0:00:40]} f6 {[%emt 0:00:20]} 51. Be4 {[%emt 0:00:40]} Kd6 {[%emt 0:00:23]} 52. Kg4 {[%emt 0:00:17]} Rc5 {[%emt 0:00:00]} 53. Bg6 {[%emt 0:00:00]} Ke6 {[%emt 0:00:00]} 54. Bd3 {[%emt 0:00:00]} Kd5 {[%emt 0:00:00]} 55. Bg6 {[%emt 0:00:00]} Kd4 {[%emt 0:00:00]} 56. Kf3 {[%emt 0:00:00]} Ra5 {[%emt 0:00:00]} 57. Bh7 {[%emt 0:00:00]} Ra3+ {[%emt 0:00:00]} 58. Kg4 {[%emt 0:00:00]} Ke3 {[%emt 0:00:00]} 59. Kf5 {[%emt 0:00:00]} Ra6 {[%emt 0:00:00]} 60. Bg6 {[%emt 0:00:00]} Kf3 {[%emt 0:00:00]} 61. g4 {[%emt 0:00:00]} Ra5+ {[%emt 0:00:00]} 62. Kxf6 {[%emt 0:00:00]} Kxf4 {[%emt 0:00:00]} 63. Kg7 {[%emt 0:00:00]} Kg5 {[%emt 0:00:00]} 64. Bh5 {[%emt 0:00:00]} Ra7+ {[%emt 0:00:00]} 65. Kf8 {[%emt 0:00:00]} Kh4 {[%emt 0:00:00]} 66. Kg8 {[%emt 0:00:00]} Ra5 {[%emt 0:00:00]} 67. Kg7 {[%emt 0:00:00]} Rxh5 {[%emt 0:00:00]} 0-1

[Event "Mitropa Cup Open 2024"]
[Site "Apolda"]
[Date "2024.02.15"]
[Round "1.18"]
[White "Stalmach, Richard"]
[Black "Goroshkov, Maksym"]
[Result "1/2-1/2"]
[ECO "D46"]
[WhiteElo "2433"]
[BlackElo "2338"]
[Annotator "TA"]
[PlyCount "119"]
[EventDate "2024.02.15"]
[EventType "team-tourn"]
[EventCountry "GER"]
[SourceTitle "playchess.com"]
[Source "ChessBase"]
[SourceQuality "1"]
[WhiteTeam "Czech Republic"]
[BlackTeam "Slovenia"]
[WhiteTeamCountry "CZE"]
[BlackTeamCountry "SLO"]
[TimeControl "40/5400+30:1800+30"]

{[%evp 28,119,76,22,13,12,20,34,26,16,28,0,47,0,0,0,0,0,0,-20,-36,-58,0,0,0,0,0,0,7,12,22,0,0,0,13,16,45,0,0,0,0,0,118,0,0,0,0,0,0,0,0,0,0,0,0,0,0,0,0,0,0,0,0,0,0,0,0,0,0,0,5,24,104,93,90,0,0,0,0,0,0,0,0,0,0,0,0,0,0,0,0,0,0,0]} 1. d4 {[%emt 0:00:04]} Nf6 {[%emt 0:00:25]} 2. c4 {[%emt 0:00:12]} e6 {[%emt 0:00:44]} 3. Nf3 {[%emt 0:00:24]} d5 {[%emt 0:02:46]} 4. Nc3 {[%emt 0:00:16]} c6 {[%emt 0:02:30]} 5. e3 {[%emt 0:00:22]} Bb4 {[%emt 0:01:26]} 6. Bd3 {[%emt 0:00:35]} Nbd7 {[%emt 0:02:10]} 7. O-O {[%emt 0:02:16]} O-O {[%emt 0:00:54]} 8. Qc2 $1 {[%emt 0:02:57] The main line 8.Qc2 scores better than 8.a3.} h6 {[%emt 0:02:08] D46: Semi-Slav: 5 e3 Nbd7 6 Bd3, Black avoids the Meran.} 9. a3 {[%emt 0:04:06]} Bd6 {[%emt 0:00:23]} 10. e4 {[%emt 0:02:54]} dxe4 {[%emt 0:01:06]} 11. Nxe4 {[%emt 0:00:07]} Nxe4 {[%emt 0:01:17]} 12. Bxe4 {[%emt 0:00:05]} f5 $146 {[%emt 0:15:09]} ({Predecessor:} 12... Nf6 13. Bd3 b6 14. b4 Qc7 15. h3 Rd8 16. Qb2 Nh5 17. Re1 Nf4 18. Bf1 Ng6 19. Re4 c5 20. dxc5 bxc5 21. Qc3 f5 {½-½ Nayan Kumar,M (2056)-Islam,S (1935) BAN-chB 43rd 2017 (11)}) 13. Bd3 {[%emt 0:00:24]} Qf6 {[%emt 0:00:16]} 14. c5 {[%emt 0:15:05]} Bc7 {[%emt 0:00:25]} 15. Re1 {[%emt 0:00:04]} (15. Bc4 $16) 15... e5 $11 {[%emt 0:03:04]} 16. dxe5 {[%emt 0:01:47]} Nxe5 {[%emt 0:00:12]} 17. Nxe5 {[%emt 0:00:06]} Bxe5 {[%emt 0:00:06]} 18. Qe2 {[%emt 0:06:25]} Bd7 {[%emt 0:07:05]} 19. Bc4+ {[%emt 0:07:40]} (19. Qxe5 Rae8 20. Bc4+ Kh7 $15) 19... Kh7 {[%emt 0:00:09]} (19... Kh8 $1 $11) 20. Qxe5 {[%emt 0:01:47]} (20. Bxh6 $1 $14 {might be stronger.} Bxh2+ 21. Kxh2 Qxh6+ 22. Kg1) 20... Rae8 $11 {[%emt 0:00:07]} 21. Bf4 $1 {[%emt 0:00:15]} Rxe5 {[%emt 0:00:35]} 22. Bxe5 {[%emt 0:00:10]} Qh4 {[%emt 0:00:44]} 23. f4 {[%emt 0:00:11]} Re8 {[%emt 0:04:04]} 24. Rad1 {[%emt 0:10:39]} Bc8 {[%emt 0:06:03]} (24... Be6 $15 25. Bxe6 Rxe6) 25. g3 $11 {[%emt 0:05:15]} Qh5 {[%emt 0:03:02]} 26. Rd6 {[%emt 0:03:04]} a5 {[%emt 0:02:18]} 27. Kg2 {[%emt 0:05:46]} a4 {[%emt 0:01:29]} 28. Re3 {[%emt 0:01:20]} Re7 {[%emt 0:01:53]} 29. Rd8 {[%emt 0:01:01]} Re8 $1 {[%emt 0:00:50]} 30. Rd6 {[%emt 0:00:06]} Re7 {[%emt 0:00:04]} 31. h4 {[%emt 0:05:36]} Qe8 {[%emt 0:04:39]} 32. g4 {[%emt 0:01:50]} Be6 {[%emt 0:13:24]} (32... fxg4 $5 33. Bd3+ $8 Kg8 $16) 33. Bxe6 {[%emt 0:01:09]} Rxe6 {[%emt 0:00:09]} 34. gxf5 {[%emt 0:00:02]} Rf6 {[%emt 0:00:18]} (34... Rxd6 $11 {remains equal.} 35. cxd6 Qh5 (35... Qf7 36. Rg3 $11)) 35. Rg3 {[%emt 0:00:57]} (35. Bxf6 $6 Qxe3 36. Rd7 Qe4+ (36... Qxf4 37. Rxg7+ Kh8 38. Rg4+ Kh7 39. Rxf4 Kg8 40. Rg4+ Kf8 41. Be5) 37. Kg3 Kg8 (37... Qxf5 $2 38. Rxg7+ Kh8 39. Be5 $18) (37... Qe3+ 38. Kg4 $11) 38. Rxg7+ Kf8 $11) (35. Bd4 $16 Rxd6 36. Rxe8 Rxd4 37. Kf3) 35... Qh5 $1 $11 {[%emt 0:00:09]} 36. Bxf6 {[%emt 0:19:51]} (36. Rd7 $5 Qe2+ $8 37. Kh3 Qf1+ 38. Kh2 Qf2+ 39. Kh3 Qf1+ (39... Rxf5 40. Rgxg7+ Kh8 41. Rh7+ Kg8 42. Rh8#) 40. Rg2 Qh1+ (40... Rxf5 41. Rdxg7+ Kh8 42. Rg8+ Kh7 43. Rh8#) 41. Kg3 Qe1+ (41... Rxf5 $2 {loses.} 42. Rxg7+ Kh8 43. Bc3 $18) 42. Kf3 Qf1+ 43. Kg3 Qe1+ 44. Kf3 Qf1+ 45. Kg3 Qe1+ $11) 36... Qe2+ {[%emt 0:00:05]} 37. Kg1 {[%emt 0:00:09]} Qe1+ {[%emt 0:00:05]} 38. Kg2 {[%emt 0:00:06]} Qe2+ {[%emt 0:00:05]} 39. Kg1 {[%emt 0:00:38]} Qe1+ {[%emt 0:00:04]} 40. Kh2 {[%emt 0:00:02]} Qf2+ {[%emt 0:00:13]} 41. Rg2 {[%emt 0:32:43]} Qxf4+ {[%emt 0:30:07]} 42. Kg1 {[%emt 0:00:06]} Qe3+ {[%emt 0:02:38]} 43. Kf1 {[%emt 0:02:00]} Qf3+ {[%emt 0:00:15]} 44. Rf2 {[%emt 0:00:00]} Qh1+ {[%emt 0:00:00]} 45. Ke2 {[%emt 0:00:00]} gxf6 {[%emt 0:00:00]} 46. Rd7+ {[%emt 0:00:00]} Kg8 {[%emt 0:00:00]} 47. Rxb7 {[%emt 0:00:00]} Qe4+ {[%emt 0:00:00]} 48. Kd1 {[%emt 0:00:00]} Qd3+ {[%emt 0:00:00]} 49. Kc1 {[%emt 0:00:00]} Qc4+ {[%emt 0:00:00]} (49... Qe3+ $11 50. Rd2 Kf8) 50. Kb1 $16 {[%emt 0:00:00]} Qe4+ {[%emt 0:00:00] [#]} 51. Ka2 {[%emt 0:00:00]} (51. Rc2 $1 $16) 51... Qd5+ $11 {[%emt 0:00:00]} 52. b3 {[%emt 0:00:00]} axb3+ {[%emt 0:00:00]} 53. Rxb3 {[%emt 0:00:00]} Qxc5 {[%emt 0:00:00]} 54. Rb8+ {[%emt 0:00:00]} Kf7 {[%emt 0:00:00]} 55. Rb7+ {[%emt 0:00:00]} Kf8 {[%emt 0:00:00]} 56. Rd2 {[%emt 0:00:00]} Ke8 {[%emt 0:00:00]} 57. Rb8+ {[%emt 0:00:00]} Ke7 {[%emt 0:00:00]} 58. Rb7+ {[%emt 0:00:00]} Ke8 {[%emt 0:00:00]} 59. Rb8+ {[%emt 0:03:30]} Ke7 {[%emt 0:00:00]} 60. Rb7+ {[%emt 0:00:26]} 1/2-1/2

[Event "Mitropa Cup Open 2024"]
[Site "Apolda"]
[Date "2024.02.15"]
[Round "1.19"]
[White "Lavrencic, Matic"]
[Black "Gnojek, Petr"]
[Result "1-0"]
[ECO "B13"]
[WhiteElo "2299"]
[BlackElo "2428"]
[Annotator "TA"]
[PlyCount "55"]
[EventDate "2024.02.15"]
[EventType "team-tourn"]
[EventCountry "GER"]
[SourceTitle "playchess.com"]
[Source "ChessBase"]
[SourceQuality "1"]
[WhiteTeam "Slovenia"]
[BlackTeam "Czech Republic"]
[WhiteTeamCountry "SLO"]
[BlackTeamCountry "CZE"]
[TimeControl "40/5400+30:1800+30"]

{[%evp 13,55,19,19,19,18,13,136,131,143,133,145,145,322,325,315,286,341,313,387,308,368,327,541,531,864,933,1507,1464,1495,1473,1493,1493,29992,29956,29944,7039,29984,29984,29984,29985,29984,4866,1739,1543]} 1. e4 {[%emt 0:00:26]} c6 {[%emt 0:00:21]} 2. d4 {[%emt 0:07:17]} d5 {[%emt 0:00:07]} 3. exd5 {[%emt 0:00:07]} cxd5 {[%emt 0:00:05]} 4. Bd3 {[%emt 0:00:06]} Nc6 {[%emt 0:00:04]} 5. c3 {[%emt 0:00:51]} Qc7 {[%emt 0:01:46]} 6. h3 {[%emt 0:03:41]} Nf6 {[%emt 0:00:22]} 7. Nf3 {[%emt 0:01:01]} g6 {[%emt 0:01:12]} 8. O-O {[%emt 0:01:23]} Bf5 {[%emt 0:04:29]} 9. Re1 {[%emt 0:00:30]} O-O-O {[%emt 0:08:01]} (9... Bxd3 $11 {keeps the balance.} 10. Qxd3 e6) 10. a4 $16 {[%emt 0:06:26] White is clearly better.} Bxd3 {[%emt 0:13:05]} 11. Qxd3 {[%emt 0:00:27][%cal Oa4a5]} Ne4 {[%emt 0:00:12]} 12. Na3 {[%emt 0:06:18]} Bg7 $2 {[%emt 0:04:01] [#]} (12... e6 $16 13. Nb5 Qd7) 13. Nb5 $18 {[%emt 0:05:53]} Qd7 {[%emt 0:08:52]} 14. c4 {[%emt 0:08:38]} f5 {[%emt 0:13:19]} 15. Bf4 {[%emt 0:03:14]} e5 {[%emt 0:08:49]} 16. dxe5 {[%emt 0:09:38][%cal Bd4e5,Be5e6][%mdl 32]} d4 {[%emt 0:00:08]} 17. e6 {[%emt 0:12:54]} Qe7 {[%emt 0:03:45] [#]} (17... Qxe6 {keeps fighting.} 18. Ng5 Nxg5) 18. c5 $1 {[%emt 0:03:11][%mdl 512]} Nxc5 {[%emt 0:09:04]} (18... Qxe6 19. Nd6+) 19. Qc4 {[%emt 0:00:39]} a6 {[%emt 0:03:49]} 20. Bg5 {[%emt 0:01:28]} axb5 {[%emt 0:01:47]} 21. axb5 {[%emt 0:00:23]} Qd6 {[%emt 0:01:33]} 22. bxc6 {[%emt 0:01:06]} Rde8 {[%emt 0:03:33]} 23. Ra8+ {[%emt 0:03:40] Black is weak on the dark squares} Kc7 {[%emt 0:00:04]} 24. cxb7 {[%emt 0:00:09]} Qc6 {[%emt 0:04:01]} 25. b8=Q+ {[%emt 0:00:38]} Rxb8 {[%emt 0:00:03]} 26. Bf4+ {[%emt 0:00:06]} Kb7 {[%emt 0:00:05]} 27. Rxb8+ {[%emt 0:00:05]} (27. Ra5 $142 Na6 28. Rb5+ Qxb5 29. Qxb5+ Ka7 30. Bxb8+ Rxb8 31. Qd5 (31. Qd7+ Rb7 $18) 31... Bh6 32. e7 (32. Qxd4+ Kb7 33. Qd5+ Kb6 34. e7 Nc7 35. Qd6+ Kb7 36. Ne5 Bc1 37. Qc6+ Ka7) (32. Nxd4 Be3 33. Rxe3 Rxb2 34. Ra3 g5 35. Qc6 Kb8 36. Rxa6 Rb1+ 37. Kh2 Ra1 38. Rxa1 h6 39. Ra8#)) 27... Rxb8 {[%emt 0:00:04]} 28. Qb4+ {[%emt 0:00:16] White took control after the opening.   Weighted Error Value: White=0.13 (very precise) /Black=1.14.  Loses game:     	---       	Black=1      Mistake:       	---       	Black=2      Inaccurate:     	---       	Black=2      OK:         	White=6     	Black=3      Best:        	White=1     	---} 1-0

[Event "Mitropa Cup Open 2024"]
[Site "Apolda"]
[Date "2024.02.15"]
[Round "1.20"]
[White "Nemec, Jachym"]
[Black "Olenik Campa, Rudi"]
[Result "1-0"]
[ECO "E04"]
[WhiteElo "2393"]
[BlackElo "2299"]
[Annotator "RC"]
[PlyCount "93"]
[EventDate "2024.02.15"]
[EventType "team-tourn"]
[EventCountry "GER"]
[SourceTitle "playchess.com"]
[Source "ChessBase"]
[SourceQuality "1"]
[WhiteTeam "Czech Republic"]
[BlackTeam "Slovenia"]
[WhiteTeamCountry "CZE"]
[BlackTeamCountry "SLO"]
[TimeControl "40/5400+30:1800+30"]

1. d4 {[%emt 0:00:03]} Nf6 {[%emt 0:00:05]} 2. c4 {[%emt 0:00:05]} e6 {[%emt 0:00:04]} 3. g3 {[%emt 0:00:32]} d5 {[%emt 0:00:16]} 4. Bg2 {[%emt 0:00:06]} Bb4+ {[%emt 0:00:09]} 5. Nd2 {[%emt 0:00:25]} O-O {[%emt 0:00:42]} 6. Ngf3 {[%emt 0:00:36]} dxc4 {[%emt 0:00:19]} 7. Qc2 {[%emt 0:00:17]} a5 {[%emt 0:00:17]} 8. a3 {[%emt 0:00:53]} Bxd2+ {[%emt 0:00:07]} 9. Bxd2 {[%emt 0:00:06]} b5 {[%emt 0:00:13]} 10. a4 {[%emt 0:00:27]} c6 {[%emt 0:00:24]} 11. e4 {[%emt 0:00:21]} e5 {[%emt 0:09:12]} 12. dxe5 {[%emt 0:02:51]} Nfd7 {[%emt 0:00:16]} 13. O-O {[%emt 0:04:47]} Nc5 {[%emt 0:05:29]} 14. Be3 {[%emt 0:11:05]} Qd3 {[%emt 0:08:59]} 15. Qxd3 {[%emt 0:07:20]} Nxd3 {[%emt 0:00:05]} 16. axb5 {[%emt 0:06:38]} cxb5 {[%emt 0:00:20]} 17. Nd4 {[%emt 0:04:55]} Bd7 {[%emt 0:05:20]} 18. f4 {[%emt 0:17:16]} a4 {[%emt 0:17:32]} 19. e6 {[%emt 0:08:33]} fxe6 {[%emt 0:00:12]} 20. e5 {[%emt 0:00:08]} Ra6 {[%emt 0:03:34]} 21. Bb7 {[%emt 0:06:48]} Rb6 {[%emt 0:02:20]} 22. Be4 {[%emt 0:00:13]} Ra6 {[%emt 0:06:13]} 23. f5 {[%emt 0:03:55]} exf5 {[%emt 0:12:41]} 24. Bd5+ {[%emt 0:01:38]} Kh8 {[%emt 0:00:05]} 25. e6 {[%emt 0:01:28]} Rd6 {[%emt 0:03:17]} 26. Nxf5 {[%emt 0:04:38]} Rxd5 {[%emt 0:17:42]} 27. Ne7 {[%emt 0:00:27]} Rd8 {[%emt 0:04:42]} 28. Nxd5 {[%emt 0:03:05]} Bxe6 {[%emt 0:00:05]} 29. Nc3 {[%emt 0:03:51]} Bd7 {[%emt 0:01:09]} 30. Ne4 {[%emt 0:02:53]} h6 {[%emt 0:00:07]} 31. Bb6 {[%emt 0:04:53]} Rg8 {[%emt 0:00:24]} 32. Nc5 {[%emt 0:02:00]} Bh3 {[%emt 0:02:07]} 33. Rf3 {[%emt 0:00:45]} Nxb2 {[%emt 0:01:45]} 34. Ra2 {[%emt 0:01:28]} c3 {[%emt 0:00:44]} 35. Rxc3 {[%emt 0:00:18]} Rf8 {[%emt 0:00:27]} 36. Rc1 {[%emt 0:00:41]} a3 {[%emt 0:00:09]} 37. Bc7 {[%emt 0:01:35]} b4 {[%emt 0:00:22]} 38. Be5 {[%emt 0:00:43]} Rc8 {[%emt 0:00:46]} 39. Bxb2 {[%emt 0:00:18]} axb2 {[%emt 0:00:14]} 40. Rxb2 {[%emt 0:00:08]} Na6 {[%emt 0:01:03]} 41. Nd3 {[%emt 0:31:10]} Rd8 {[%emt 0:10:26]} 42. Nf4 {[%emt 0:00:00]} Bc8 {[%emt 0:00:24]} 43. Rc6 {[%emt 0:00:00]} Bb7 {[%emt 0:00:27]} 44. Rb6 {[%emt 0:00:00]} Rd7 {[%emt 0:10:52]} 45. Ng6+ {[%emt 0:00:00]} Kg8 {[%emt 0:00:04]} 46. Re2 {[%emt 0:00:00]} Rd1+ {[%emt 0:06:27]} 47. Kf2 {[%emt 0:00:00]} 1-0

[Event "Mitropa Cup Open 2024"]
[Site "Apolda"]
[Date "2024.02.16"]
[Round "2.1"]
[White "Baidetskyi, Valentin"]
[Black "Bluebaum, Matthias"]
[Result "1/2-1/2"]
[ECO "C48"]
[WhiteElo "2499"]
[BlackElo "2655"]
[Annotator "TA"]
[PlyCount "60"]
[EventDate "2024.02.15"]
[EventType "team-tourn"]
[EventCountry "GER"]
[SourceTitle "playchess.com"]
[Source "ChessBase"]
[SourceQuality "1"]
[WhiteTeam "Austria"]
[BlackTeam "Germany"]
[WhiteTeamCountry "AUT"]
[BlackTeamCountry "GER"]
[TimeControl "40/5400+30:1800+30"]

{[%evp 16,60,-2,0,0,1,5,0,0,0,7,0,0,0,0,-3,0,0,0,0,0,0,0,0,0,0,0,0,2,0,4,0,0,0,0,0,0,-2,-7,-2,-9,-9,-9,-9,-9,-9,-2]} 1. e4 {[%emt 0:00:02]} e5 {[%emt 0:00:08]} 2. Nf3 {[%emt 0:00:05]} Nc6 {[%emt 0:00:08]} 3. Nc3 {[%emt 0:00:06]} Nf6 {[%emt 0:00:24]} 4. Bb5 {[%emt 0:00:09]} Nd4 {[%emt 0:01:29]} 5. Nxd4 {[%emt 0:00:17]} exd4 {[%emt 0:00:07]} 6. e5 {[%emt 0:00:05]} dxc3 {[%emt 0:01:05]} 7. exf6 {[%emt 0:00:06]} Qxf6 {[%emt 0:00:52]} 8. dxc3 {[%emt 0:00:06]} Bc5 {[%emt 0:05:28]} 9. Qe2+ {[%emt 0:00:21] The position is equal.} Qe7 {[%emt 0:01:37]} 10. O-O {[%emt 0:00:51]} Qxe2 {[%emt 0:02:41]} 11. Bxe2 {[%emt 0:00:28]} d5 {[%emt 0:00:45]} 12. Bf4 {[%emt 0:02:00]} c6 {[%emt 0:04:24]} 13. c4 {[%emt 0:00:37]} Be6 {[%emt 0:03:25]} 14. cxd5 {[%emt 0:00:28]} Bxd5 {[%emt 0:00:04]} 15. Rfe1 {[%emt 0:01:31]} O-O {[%emt 0:00:29]} 16. Bd3 {[%emt 0:01:34]} Rfe8 {[%emt 0:00:45]} 17. a4 {[%emt 0:00:40]} a5 {[%emt 0:02:28]} 18. Bd2 {[%emt 0:04:55]} b6 {[%emt 0:03:19]} 19. Rxe8+ {[%emt 0:00:54]} Rxe8 {[%emt 0:00:02]} 20. Re1 {[%emt 0:00:09]} Rxe1+ {[%emt 0:00:27]} 21. Bxe1 $11 {[%emt 0:00:03][%mdl 4096] Endgame. KBB-KBB} g6 {[%emt 0:01:18]} 22. Kf1 {[%emt 0:06:27]} f5 {[%emt 0:01:29]} 23. c4 {[%emt 0:00:40]} Be6 {[%emt 0:00:32]} 24. f4 {[%emt 0:00:10]} Kf7 {[%emt 0:00:29]} 25. Ke2 {[%emt 0:00:24]} Bd4 {[%emt 0:01:46]} 26. b4 {[%emt 0:00:40]} axb4 {[%emt 0:00:06]} 27. Bxb4 {[%emt 0:00:01]} c5 {[%emt 0:00:11]} 28. Bd2 {[%emt 0:00:18]} Bd7 {[%emt 0:00:11]} 29. a5 {[%emt 0:00:05]} bxa5 {[%emt 0:00:02]} 30. Bxa5 {[%emt 0:00:06]} Bc6 {[%emt 0:00:05] A rather calm draw.   Weighted Error Value: White=0.01 (flawless) /Black=0.00 (flawless) .  OK:         	White=9     	Black=7      Best:        	---       	Black=1} 1/2-1/2